lending/lending_fUSD_20251124
["ID","MTS","AMOUNT","RATE_DAILY","PERIOD"]
[394789229,1763949049900,-250.0,0.00040899,30]
[394789230,1763949049909,-500.0,0.00040899,30]
[394789231,1763949049918,-620.0,0.00040899,30]
[394789232,1763949049927,-250.0,0.00040899,30]
[394789233,1763949049936,-250.0,0.00040899,30]
[394789234,1763949049946,-500.0,0.00040899,30]
[394789235,1763949049955,-651.31514718,0.00040899,30]
[394789236,1763949049964,-250.0,0.00040899,30]
[394789237,1763949049974,-266.33499402,0.00040899,30]
[394789238,1763949049983,-500.0,0.00040899,30]
[394789239,1763949049994,-250.0,0.00040899,30]
[394789240,1763949050008,-500.0,0.00040899,30]
[394789241,1763949050019,-500.0,0.00040899,30]
[394789242,1763949050030,-264.02701306,0.00040899,30]
[394789243,1763949050043,-219.90951083,0.00040899,15]
[394789244,1763949050051,-500.0,0.00040899,30]
[394789245,1763949050061,-500.0,0.00040899,30]
[394789246,1763949050071,-500.0,0.00040899,30]
[394789247,1763949050080,-500.0,0.00040899,30]
[394789248,1763949050090,-500.0,0.00040899,30]
[394789249,1763949050099,-500.0,0.00040899,30]
[394789250,1763949050110,-500.0,0.00040899,30]
[394789251,1763949050120,-500.0,0.00040899,30]
[394789252,1763949050130,-500.0,0.00040899,30]
[394789253,1763949050140,-500.0,0.00040899,30]
[394789254,1763949050149,-500.0,0.00040899,30]
[394789255,1763949050159,-500.0,0.00040899,30]
[394789256,1763949050168,-500.0,0.00040899,30]
[394789257,1763949050178,-500.0,0.00040899,30]
[394789258,1763949050188,-500.0,0.00040899,30]
[394789259,1763949050199,-500.0,0.00040899,30]
[394789260,1763949050209,-500.0,0.00040899,30]
[394789261,1763949050219,-500.0,0.00040899,30]
[394789262,1763949050230,-500.0,0.00040899,30]
[394789263,1763949050239,-500.0,0.00040899,30]
[394789264,1763949050249,-500.0,0.00040899,30]
[394789265,1763949050261,-500.0,0.00040899,30]
[394789266,1763949050274,-500.0,0.00040899,30]
[394789267,1763949050285,-500.0,0.00040899,30]
[394789268,1763949050295,-500.0,0.00040899,30]
[394789269,1763949050305,-184.77103183,0.00040899,30]
[394789270,1763949050316,-500.0,0.00040899,30]
[394789271,1763949050326,-587.25202429,0.00040899,30]
[394789272,1763949050337,-681.23747,0.00040899,6]
[394789273,1763949050347,-1000.0,0.00040899,3]
[394789274,1763949050356,-1000.0,0.00040899,3]
[394789275,1763949050366,-1000.0,0.00040899,3]
[394789276,1763949050375,-1513.0,0.000409,120]
[394789277,1763949050385,-3506.18369606,0.000409,15]
[394789278,1763949050396,-161.0,0.000409,30]
[394789279,1763949050406,-190.47409604,0.000409,15]
[394789280,1763949050416,-156.82112978,0.000409,2]
[394789281,1763949050426,-200.0,0.000409,7]
[394789282,1763949050436,-1247.0,0.000409,14]
[394789283,1763949050445,-1247.0,0.000409,14]
[394789284,1763949050454,-1247.0,0.000409,14]
[394789285,1763949050463,-168.0,0.00040911,120]
[394789286,1763949050472,-242.0,0.00040959,120]
[394789287,1763949050481,-500.0,0.0004097,3]
[394789288,1763949050494,-500.0,0.0004097,3]
[394789289,1763949050504,-500.0,0.0004097,3]
[394789290,1763949050513,-500.0,0.0004097,3]
[394789291,1763949050523,-500.0,0.0004097,3]
[394789292,1763949050532,-500.0,0.0004097,3]
[394789293,1763949050542,-500.0,0.0004097,3]
[394789294,1763949050551,-500.0,0.0004097,3]
[394789295,1763949050560,-500.0,0.0004097,3]
[394789296,1763949050569,-1000.0,0.0004097,3]
[394789297,1763949050579,-1000.0,0.0004097,3]
[394789298,1763949050589,-1000.0,0.0004097,3]
[394789299,1763949050599,-1000.0,0.0004097,3]
[394789300,1763949050608,-1000.0,0.0004097,3]
[394789301,1763949050617,-1000.0,0.0004097,3]
[394789302,1763949050627,-1000.0,0.0004097,3]
[394789303,1763949050636,-1000.0,0.0004097,3]
[394789304,1763949050645,-1000.0,0.0004097,3]
[394789305,1763949050655,-959.67,0.00040985,30]
[394789306,1763949050665,-161.99505301,0.00040986,7]
[394789307,1763949050674,-207.4,0.00040997,30]
[394789308,1763949050683,-200.0,0.00040998,30]
[394789309,1763949050696,-615.9526452,0.00040999,8]
[394789310,1763949050706,-500.0,0.00040999,8]
[394789311,1763949050715,-500.0,0.00040999,8]
[394789312,1763949050725,-500.0,0.00040999,8]
[394789313,1763949050735,-500.0,0.00040999,8]
[394789314,1763949050744,-500.0,0.00040999,8]
[394789315,1763949050799,-507.11288139,0.00040999,8]
[394789316,1763949050809,-500.0,0.00040999,7]
[394789317,1763949050819,-500.0,0.00040999,7]
[394789318,1763949050829,-373.17272084,0.00040999,7]
[394789319,1763949050840,-500.0,0.00040999,2]
[394789320,1763949050850,-500.0,0.00040999,2]
[394789321,1763949050859,-500.0,0.00040999,2]
[394789322,1763949050869,-500.0,0.00040999,2]
[394789323,1763949050883,-500.0,0.00040999,2]
[394789324,1763949050892,-500.0,0.00040999,2]
[394789325,1763949050902,-500.0,0.00040999,2]
[394789326,1763949050912,-350.9344891,0.00040999,2]
[394789327,1763949050921,-23420.79254629,0.00041,21]
[394789328,1763949050931,-424285.72864851,0.00041,2]
[394789329,1763949051065,-111355.49792264,0.00041,2]
[394789330,1763949051078,-1043.81319062,0.00041,2]
[394789331,1763949051089,-500.0,0.00041,2]
[394789332,1763949051101,-58577.74516177,0.00041,2]
[394789333,1763949051113,-10078.75992589,0.00041,2]
[394789334,1763949051128,-877.58073922,0.00040595,15]
[394789335,1763949051148,-249.90623396,0.00038356,8]
[394789336,1763949051157,-6.73376804,0.00040595,15]
[394789337,1763949051323,-500.0,0.00038356,8]
[394789338,1763949051333,-324.083758,0.0003863,120]
[394789339,1763949051343,-522.3509747,0.00040116,28]
[394789340,1763949051355,-177.64,0.00040192,2]
[394789341,1763949051366,-4018.20613292,0.00040595,15]
[394789342,1763949051378,-1302.81008527,0.00040595,15]
[394789343,1763949051388,-324.083758,0.00040705,120]
[394789344,1763949051398,-324.083758,0.00040705,120]
[394789345,1763949051408,-2469.02239873,0.00041,2]
[394789346,1763949051568,-272.47380231,0.00038356,8]
[394789347,1763949051580,-230.21701825,0.00038356,8]
[394789348,1763949051589,-32.16639236,0.00038356,8]
[394789349,1763949051600,-470.72372747,0.00038356,8]
[394789350,1763949051610,-522.3509747,0.00040508,28]
[394789351,1763949051619,-1818.64029783,0.000409,15]
[394789357,1763949667763,627.95456,7.945e-05,2]
[394789366,1763950016847,200.0,0.00022,30]
[394789367,1763950039156,-196.81,0.00018324,2]
[394789393,1763950231966,-165.86,0.0002953,2]
[394789394,1763950231976,-200.0,0.0002953,2]
[394789395,1763950231985,-27.70024574,0.00029754,119]
[394789396,1763950232014,-272.29975426,0.00029754,119]
[394789397,1763950232024,-20.67753264,0.00029754,119]
[394789398,1763950232036,-279.32246736,0.00029754,119]
[394789399,1763950232057,-300.0,0.00029754,119]
[394789400,1763950232076,-69.87330958,0.00029754,119]
[394789401,1763950232087,-230.12669042,0.00029754,119]
[394789402,1763950232096,-300.0,0.00029754,119]
[394789403,1763950232105,-153.88990528,0.00032,2]
[394789404,1763950232114,-309.64,0.00033735,2]
[394789405,1763950232123,-212.66219936,0.00034973,5]
[394789406,1763950232157,-287.33780064,0.00034973,5]
[394789407,1763950232166,-500.0,0.00034973,5]
[394789408,1763950232175,-500.0,0.00034973,5]
[394789409,1763950232184,-502.16141848,0.00034973,5]
[394789410,1763950232194,-500.0,0.00034973,5]
[394789411,1763950232204,-500.0,0.00034973,5]
[394789412,1763950232213,-500.55073687,0.00034973,5]
[394789413,1763950232221,-348.0,0.00034998,3]
[394789414,1763950232231,-1200.0,0.00034999,3]
[394789415,1763950232239,-68927.58319962,0.00035,2]
[394789416,1763950232250,-4172.91798206,0.00035,2]
[394789417,1763950232261,-43219.44229465,0.00035,2]
[394789418,1763950232273,-110496.68152367,0.00035,2]
[394789419,1763950232282,-1257.21021956,0.00035,2]
[394789420,1763950232291,-500.0,0.00035521,5]
[394789421,1763950232300,-426.8933355,0.00035808,2]
[394789422,1763950232309,-499.90288538,0.00035984,30]
[394789423,1763950232321,-0.09711462,0.00035984,30]
[394789424,1763950232330,-3434.76,0.00035985,2]
[394789425,1763950232339,-161.94,0.00036113,30]
[394789426,1763950232349,-6091.47474541,0.00036151,38]
[394789427,1763950232360,-305.8425349,0.00036151,38]
[394789433,1763950237925,-272.54273926,0.000319,2]
[394789434,1763950237934,-20232.91271969,0.00036151,38]
[394789435,1763950237944,-27316.9,0.00036341,2]
[394789436,1763950237953,-500.33650014,0.00036373,5]
[394789437,1763950237965,-323.38708703,0.00036373,5]
[394789438,1763950237975,-500.0,0.00036373,5]
[394789439,1763950237984,-500.84660045,0.00036373,5]
[394789440,1763950237994,-505.39968933,0.00036373,5]
[394789441,1763950238003,-166.25018838,0.00036373,5]
[394789442,1763950238012,-2854.72588313,0.00036578,2]
[394789443,1763950238022,-2751.0,0.00036687,120]
[394789444,1763950238032,-174.11699158,0.00036772,2]
[394789445,1763950238042,-1000.0,0.000368,40]
[394789446,1763950238051,-1000.0,0.000368,50]
[394789447,1763950238060,-163.85,0.00036835,2]
[394789448,1763950238070,-3948.21,0.00036872,2]
[394789449,1763950238079,-3296.49,0.00036872,2]
[394789450,1763950238088,-8467.64,0.00036872,2]
[394789451,1763950238097,-821.01,0.00036872,2]
[394789452,1763950238107,-150.0,0.00036888,7]
[394789453,1763950238116,-192.88996255,0.00036888,7]
[394789454,1763950238125,-150.0,0.00036888,7]
[394789455,1763950238135,-150.0,0.0003692,2]
[394789456,1763950238144,-252.65036036,0.00036921,5]
[394789458,1763950240017,-747.34963964,0.00036921,5]
[394789459,1763950240026,-153.0,0.00037072,2]
[394789460,1763950240035,-500.0,0.0003708,5]
[394789461,1763950240045,-309.64,0.00037159,2]
[394789462,1763950240055,-2152.13641606,0.00037196,4]
[394789463,1763950240064,-822.0,0.00037206,2]
[394789464,1763950240073,-1256.0,0.00037206,2]
[394789465,1763950240082,-659.0,0.00037206,2]
[394789466,1763950240091,-1197.393,0.00037206,2]
[394789467,1763950240101,-500.0,0.00037215,2]
[394789468,1763950240110,-999.0,0.00037358,3]
[394789469,1763950240119,-1852.42,0.00037401,2]
[394789470,1763950240128,-373.82711877,0.00037468,5]
[394789471,1763950240138,-371.26,0.00037497,30]
[394789472,1763950240148,-1285.0019115,0.00037564,2]
[394789473,1763950240157,-1000.0,0.000378,60]
[394789474,1763950240167,-999.48322554,0.00037822,5]
[394789475,1763950240176,-1076.06820803,0.00037843,4]
[394789476,1763950240185,-2401.19483894,0.00037853,2]
[394789477,1763950240194,-219.34078973,0.00037999,15]
[394789478,1763950240203,-207.21620606,0.00037999,7]
[394789479,1763950240214,-500.0,0.00037999,15]
[394789480,1763950240223,-500.0,0.00037999,15]
[394789481,1763950240232,-500.0,0.00037999,15]
[394789482,1763950240241,-500.0,0.00037999,15]
[394789483,1763950240250,-453.61164695,0.00037999,15]
[394789484,1763950240259,-500.0,0.00037999,15]
[394789485,1763950240269,-500.0,0.00037999,15]
[394789486,1763950240278,-500.0,0.00037999,15]
[394789487,1763950240287,-500.0,0.00037999,15]
[394789488,1763950240296,-500.0,0.00037999,15]
[394789489,1763950240310,-500.0,0.00037999,15]
[394789490,1763950240319,-500.0,0.00037999,15]
[394789491,1763950240329,-4014.0,0.00038,5]
[394789492,1763950240338,-1184.4078675,0.00038045,2]
[394789493,1763950240347,-168.0,0.00038046,7]
[394789494,1763950240358,-190.47409604,0.00038056,15]
[394789495,1763950240368,-11836.7502883,0.00038145,4]
[394789496,1763950240377,-1000.0,0.00038145,2]
[394789497,1763950240386,-280.6181,0.00038146,2]
[394789498,1763950240399,-1076.06820803,0.00038146,4]
[394789499,1763950240408,-4079.1913,0.00038155,2]
[394789500,1763950240417,-88475.2384,0.00038155,2]
[394789501,1763950240427,-5000.0,0.00038156,30]
[394789502,1763950240437,-1000.0,0.00038156,2]
[394789503,1763950240447,-2500.0,0.00038156,2]
[394789504,1763950240456,-166.268,0.00038156,50]
[394789505,1763950240467,-1804.621,0.00038156,50]
[394789506,1763950240478,-1842.86242066,0.00038156,2]
[394789507,1763950240487,-155.2379186,0.00038156,2]
[394789508,1763950240496,-1076.06820803,0.00038164,4]
[394789509,1763950240507,-2152.13641606,0.00038165,4]
[394789510,1763950240517,-1000.0,0.00038174,2]
[394789511,1763950240527,-20056.24041092,0.00038175,2]
[394789512,1763950240536,-168.0,0.00038191,2]
[394789513,1763950240545,-166.66,0.00038226,2]
[394789514,1763950240554,-3228.20462409,0.00038236,4]
[394789515,1763950240564,-252.0,0.00038244,2]
[394789516,1763950240573,-561.0,0.00038244,2]
[394789517,1763950240583,-2660.0,0.00038244,2]
[394789518,1763950240592,-6499.0,0.00038244,2]
[394789519,1763950240602,-1076.06820803,0.00038245,4]
[394789520,1763950240611,-150.62,0.00038246,2]
[394789521,1763950240621,-420.09235709,0.00038255,15]
[394789522,1763950240630,-500.0,0.00038255,15]
[394789523,1763950240640,-348.11492024,0.00038255,15]
[394789524,1763950240650,-500.0,0.00038255,15]
[394789525,1763950240659,-500.0,0.00038255,15]
[394789526,1763950240669,-552.67864892,0.00038255,15]
[394789527,1763950240679,-517.07690042,0.00038255,8]
[394789528,1763950240688,-514.72047397,0.00038255,8]
[394789529,1763950240698,-235.7593192,0.00038255,8]
[394789530,1763950240707,-500.0,0.00038255,8]
[394789531,1763950240719,-615.9526452,0.00038255,8]
[394789532,1763950240729,-500.0,0.00038255,8]
[394789533,1763950240738,-500.0,0.00038255,8]
[394789534,1763950240747,-500.0,0.00038255,8]
[394789535,1763950240756,-500.0,0.00038255,8]
[394789536,1763950240766,-500.0,0.00038255,7]
[394789537,1763950240776,-500.0,0.00038255,7]
[394789538,1763950240785,-500.0,0.00038255,7]
[394789539,1763950240795,-465.79407674,0.00038255,8]
[394789540,1763950240804,-500.0,0.00038255,8]
[394789541,1763950240813,-534.34453477,0.00038255,8]
[394789542,1763950240822,-500.0,0.00038255,2]
[394789543,1763950240831,-500.0,0.00038255,2]
[394789544,1763950240840,-500.0,0.00038255,2]
[394789545,1763950240849,-500.0,0.00038255,8]
[394789546,1763950240859,-500.0,0.00038255,8]
[394789547,1763950240868,-433.22462806,0.00038255,8]
[394789548,1763950240878,-379639.88714432,0.00038256,2]
[394789549,1763950240903,-593.63991259,0.00038256,2]
[394789550,1763950240917,-1309.9884068,0.00038256,2]
[394789551,1763950240929,-323.33229538,0.00038256,2]
[394789563,1763950243904,-4836.54168909,0.00038256,2]
[394789569,1763950246210,-841.13807281,0.00038256,2]
[394789570,1763950246224,-195442.66263536,0.00038256,2]
[394789571,1763950246524,-157.39512122,0.00034873,72]
[394789572,1763950246535,-1248.57569127,0.00038256,2]
[394789573,1763950246597,-720.29999997,0.00038256,2]
[394789581,1763950581404,337.88,0.00013699,2]
[394789587,1763951156638,2563.08861775,0.0002,2]
[394789588,1763951168107,340.71113267,0.000199,3]
[394789596,1763951214862,5000.00947982,0.000162,5]
[394789597,1763951274403,7096.19076976,0.00017,2]
[394789598,1763951274430,26420.62825333,0.00017,2]
[394789601,1763951432163,-666.0,0.00016999,2]
[394789612,1763951432286,-334.0,0.00016999,2]
[394789613,1763951432296,-300.0,0.00016999,2]
[394789614,1763951432306,-1200.0,0.00016999,2]
[394789615,1763951432318,-550.0,0.00016999,2]
[394789616,1763951432328,-8681.1961683,0.00017,2]
[394789617,1763951432360,-25179.11329005,0.00017,2]
[394789618,1763951432375,-9900.0,0.00017,2]
[394789701,1763951438171,-558.76146359,0.00017,2]
[394789702,1763951438183,-290.26344508,0.00017,2]
[394789703,1763951438227,-1183.55565471,0.00017,2]
[394789704,1763951438239,-801.38486692,0.00017,2]
[394789705,1763951438550,-1972.78274802,0.00017,2]
[394789717,1763951440268,-14521.6167123,0.00017,2]
[394789718,1763951440278,-257.05910787,0.00017,2]
[394789719,1763951440287,-1640.74503508,0.000179,2]
[394789720,1763951440297,-935.0,0.00018104,2]
[394789721,1763951440307,-618.08400201,0.00018104,2]
[394789722,1763951440317,-420.0,0.00018567,2]
[394789723,1763951440327,-1680.0,0.00018659,2]
[394789724,1763951440336,-241.74625061,0.000187,2]
[394789725,1763951440346,-598.0,0.00019277,2]
[394789726,1763951440355,-3950.0,0.0002,2]
[394789727,1763951440365,-7242.22252519,0.0002,2]
[394789728,1763951440374,-1286.02110414,0.0002,2]
[394789729,1763951440384,-1038.03322399,0.0002,2]
[394789730,1763951440393,-2844.63774645,0.0002,2]
[394789731,1763951440402,-413.95611827,0.0002,2]
[394789732,1763951440412,-7062.54860833,0.0002,2]
[394789733,1763951440421,-337.88,0.00020187,2]
[394789734,1763951440430,-167.0,0.00020279,2]
[394789735,1763951440440,-2351.0,0.00020481,2]
[394789736,1763951440454,-500.71648362,0.00021,5]
[394789737,1763951440465,-41527.77856573,0.00021,2]
[394789738,1763951440474,-4151.3469312,0.00022,2]
[394789739,1763951440483,-20386.85341777,0.00022,4]
[394789740,1763951440492,-4525.32429912,0.00022,2]
[394789741,1763951440501,-490.97308579,0.000221,2]
[394789742,1763951440514,-238.60026696,0.0002211,2]
[394789743,1763951440524,-195.0,0.00022206,2]
[394789744,1763951440534,-195.0,0.00022206,2]
[394789745,1763951440543,-250.0,0.00022206,2]
[394789746,1763951440552,-410.60297135,0.00022206,2]
[394789747,1763951440561,-320.0,0.00022481,2]
[394789748,1763951440570,-5374.82804158,0.000225,2]
[394789749,1763951440580,-4525.32429907,0.000241,2]
[394789750,1763951440589,-4525.32429907,0.000262,2]
[394789751,1763951440598,-337.88,0.00026676,2]
[394789752,1763951440607,-152.62072345,0.00028297,120]
[394789753,1763951440616,-4525.32429907,0.000283,2]
[394789754,1763951440626,-194.84484476,0.00030353,2]
[394789755,1763951440635,-4525.32429907,0.000304,2]
[394789756,1763951440644,-943.75715549,0.00032,120]
[394789757,1763951440653,-4525.32429907,0.000325,2]
[394789759,1763951440662,-152.41800308,0.00033,2]
[394789761,1763951440672,-337.88,0.00033165,2]
[394789763,1763951440682,-166.66,0.00034232,30]
[394789766,1763951440692,-4525.32429907,0.000346,2]
[394789768,1763951440702,-161.0,0.0003486,30]
[394789770,1763951440711,-161.0,0.0003486,30]
[394789771,1763951440720,-161.0,0.0003486,7]
[394789773,1763951440729,-161.0,0.0003486,7]
[394789797,1763951440943,-162.11,0.0003486,15]
[394789799,1763951440954,-500.0,0.00034881,5]
[394789801,1763951440964,-166.66,0.00034953,30]
[394789803,1763951440973,-161.99505301,0.00035014,7]
[394789805,1763951440983,-383.0152026,0.00035562,2]
[394789807,1763951440991,-166.66,0.00035674,30]
[394789809,1763951441001,-179.83563876,0.00036,120]
[394789811,1763951441010,-166.66,0.00036394,30]
[394789813,1763951441019,-113547.26,0.00036497,2]
[394789815,1763951441028,-250.0,0.00036622,2]
[394789817,1763951441036,-2755.05,0.00036652,2]
[394789819,1763951441045,-5000.0,0.00036664,2]
[394789821,1763951441055,-4525.32429907,0.000367,2]
[394789823,1763951441065,-150.0,0.00036702,2]
[394789825,1763951441074,-150.0,0.00036702,120]
[394789827,1763951441083,-1000.0,0.00036824,2]
[394789829,1763951441092,-500.0,0.0003683,2]
[394789831,1763951441102,-17613.07,0.00036846,2]
[394789833,1763951441111,-150.0,0.000369,120]
[394789835,1763951441120,-168.215,0.000369,46]
[394789837,1763951441130,-1627.141,0.000369,46]
[394789839,1763951441139,-161.0,0.000369,46]
[394789841,1763951441148,-161.0,0.000369,60]
[394789843,1763951441158,-161.0,0.000369,90]
[394789845,1763951441168,-161.0,0.000369,120]
[394789847,1763951441178,-1000.0,0.00036915,2]
[394789849,1763951441187,-14948.69,0.00036916,2]
[394789851,1763951441196,-166.66,0.00037115,30]
[394789853,1763951441206,-449.41,0.00037207,3]
[394789855,1763951441215,-5822.03,0.00037218,2]
[394789857,1763951441224,-341.87775182,0.00037228,2]
[394789859,1763951441234,-200.0,0.00037297,2]
[394789861,1763951441243,-1000.0,0.00037309,2]
[394789863,1763951441252,-500.0,0.00037587,2]
[394789865,1763951441261,-261.4838578,0.00037714,2]
[394789867,1763951441270,-411.67366979,0.00037716,2]
[394789869,1763951441280,-166.66,0.00037836,30]
[394789871,1763951441289,-904.31349,0.0003787,2]
[394789873,1763951441298,-168.0,0.00037946,2]
[394789875,1763951441307,-1008.0,0.00038,30]
[394789877,1763951441317,-341.0,0.00038,120]
[394789879,1763951441326,-1354.95240432,0.00038028,2]
[394789881,1763951441336,-743.4979,0.00038056,2]
[394789883,1763951441345,-280.6181,0.00038056,2]
[394789885,1763951441354,-1659.0,0.000381,2]
[394789887,1763951441364,-1416.21,0.00038137,2]
[394789889,1763951441374,-701.61,0.00038137,2]
[394789891,1763951441383,-965.83,0.00038137,2]
[394789892,1763951441394,-5521.5127578,0.00038152,2]
[394789894,1763951441403,-218.4177141,0.00038155,17]
[394789896,1763951441412,-20675.5937,0.00038156,2]
[394789899,1763951441422,-1000.0,0.00038156,2]
[394789901,1763951441433,-2500.0,0.00038156,2]
[394789903,1763951441444,-5000.0,0.00038156,30]
[394789905,1763951441453,-174.11699156,0.00038156,2]
[394789907,1763951441464,-1408.76445909,0.00038156,13]
[394789909,1763951441474,-1408.76445909,0.00038206,13]
[394789911,1763951441484,-200.82495832,0.00038236,4]
[394789913,1763951441494,-200.82495832,0.00038242,4]
[394789915,1763951441505,-200.82495832,0.00038244,4]
[394789917,1763951441515,-200.82495832,0.00038245,4]
[394789919,1763951441524,-602.47487496,0.00038246,4]
[394789921,1763951441539,-150.62,0.00038246,2]
[394789923,1763951441548,-500.0,0.00038251,15]
[394789925,1763951441557,-500.0,0.00038251,15]
[394789927,1763951441567,-500.0,0.00038251,15]
[394789929,1763951441576,-500.0,0.00038251,15]
[394789931,1763951441586,-4312.5256351,0.00038252,2]
[394789933,1763951441597,-10946.7706319,0.00038252,2]
[394789936,1763951441606,-1224.2362024,0.00038252,2]
[394789938,1763951441626,-7973.3442563,0.00038252,2]
[394789940,1763951441636,-2555.3205883,0.00038252,2]
[394789943,1763951441646,-150.0,0.00038252,2]
[394789945,1763951441656,-150.0,0.00038252,2]
[394789947,1763951441665,-150.0,0.00038252,2]
[394789949,1763951441675,-204.76572628,0.00038252,2]
[394789951,1763951441684,-500.0,0.00038252,2]
[394789953,1763951441694,-150.0,0.00038252,2]
[394789955,1763951441704,-150.0,0.00038252,2]
[394789956,1763951441713,-150.0,0.00038252,2]
[394789958,1763951441723,-219.90951083,0.00038254,15]
[394789960,1763951441733,-805.70833794,0.00038254,15]
[394789962,1763951441742,-218.83931656,0.00038254,15]
[394789964,1763951441751,-500.0,0.00038254,15]
[394789966,1763951441761,-500.0,0.00038254,15]
[394789968,1763951441770,-500.0,0.00038254,15]
[394789970,1763951441782,-500.0,0.00038254,15]
[394789973,1763951441797,-500.0,0.00038254,15]
[394789975,1763951441807,-568.34249325,0.00038254,15]
[394789977,1763951441816,-500.0,0.00038254,15]
[394789978,1763951441826,-184.77103183,0.00038254,15]
[394789980,1763951441836,-500.0,0.00038254,15]
[394789982,1763951441845,-500.0,0.00038254,15]
[394789984,1763951441854,-500.0,0.00038254,15]
[394789986,1763951441865,-620.0,0.00038254,15]
[394789988,1763951441875,-500.0,0.00038254,15]
[394789991,1763951441884,-651.31514718,0.00038254,15]
[394789993,1763951441895,-500.0,0.00038254,15]
[394789995,1763951441904,-500.0,0.00038254,15]
[394789997,1763951441915,-500.0,0.00038254,15]
[394789999,1763951441924,-500.0,0.00038254,15]
[394790001,1763951441933,-500.0,0.00038254,15]
[394790003,1763951441943,-1500.0,0.00038254,15]
[394790005,1763951441951,-500.0,0.00038254,15]
[394790007,1763951441961,-1099.23656211,0.00038254,15]
[394790009,1763951441970,-500.0,0.00038254,15]
[394790011,1763951441979,-500.0,0.00038254,15]
[394790013,1763951441988,-500.0,0.00038254,15]
[394790015,1763951441997,-587.25202429,0.00038254,15]
[394790017,1763951442008,-500.0,0.00038255,15]
[394790019,1763951442018,-500.0,0.00038255,15]
[394790021,1763951442027,-500.0,0.00038255,15]
[394790023,1763951442035,-500.0,0.00038255,15]
[394790025,1763951442045,-500.0,0.00038255,15]
[394790027,1763951442054,-500.0,0.00038255,15]
[394790029,1763951442063,-500.0,0.00038255,15]
[394790031,1763951442072,-500.0,0.00038255,15]
[394790033,1763951442082,-500.0,0.00038255,15]
[394790035,1763951442091,-500.0,0.00038255,15]
[394790037,1763951442100,-500.0,0.00038255,15]
[394790039,1763951442109,-500.0,0.00038255,15]
[394790041,1763951442119,-500.0,0.00038255,15]
[394790042,1763951442129,-500.0,0.00038255,15]
[394790045,1763951442139,-500.0,0.00038255,15]
[394790047,1763951442148,-500.0,0.00038255,15]
[394790049,1763951442158,-500.0,0.00038255,15]
[394790051,1763951442167,-500.0,0.00038255,15]
[394790053,1763951442177,-500.0,0.00038255,15]
[394790055,1763951442186,-500.0,0.00038255,15]
[394790056,1763951442195,-500.0,0.00038255,15]
[394790059,1763951442205,-500.0,0.00038255,15]
[394790060,1763951442214,-209.09661972,0.00038255,15]
[394790063,1763951442224,-500.0,0.00038255,15]
[394790064,1763951442234,-500.0,0.00038255,15]
[394790066,1763951442243,-500.0,0.00038255,15]
[394790068,1763951442252,-500.0,0.00038255,15]
[394790070,1763951442261,-500.0,0.00038255,15]
[394790072,1763951442270,-500.0,0.00038255,15]
[394790074,1763951442279,-500.0,0.00038255,15]
[394790076,1763951442289,-500.0,0.00038255,15]
[394790078,1763951442298,-500.0,0.00038255,15]
[394790080,1763951442308,-500.0,0.00038255,15]
[394790082,1763951442318,-500.0,0.00038255,15]
[394790084,1763951442328,-500.0,0.00038255,15]
[394790086,1763951442337,-500.0,0.00038255,15]
[394790088,1763951442347,-262.0497,0.00038255,15]
[394790091,1763951442360,-500.0,0.00038255,15]